bitfinex/quotes_SOLUSD_20250413
["timestamp","ask_amount","ask_price","bid_price","bid_amount"]
[1744507885074,15.79828957,133.71,133.66,18.79181043]
[1744507885275,23.26721187,133.7,133.64,23.40937344]
[1744507885970,26.0,133.71,133.64,23.40937344]
[1744507886178,49.26721187,133.72,133.67,23.26721187]
[1744507886577,49.26721187,133.72,133.66,42.0590223]
[1744507886965,23.26721187,133.69,133.63,23.26721187]
[1744507887184,23.55153501,133.74,133.61,42.0590223]
[1744507887185,23.26721187,133.67,133.61,42.0590223]
[1744507887418,23.26721187,133.66,133.61,42.0590223]
[1744507887592,0.28432314,133.7,133.61,42.0590223]
[1744507887781,33.98,133.71,133.63,23.40937344]
[1744507887963,33.98,133.71,133.66,23.26721187]
[1744507887964,26.0,133.71,133.66,23.26721187]
[1744507888169,49.26721187,133.71,133.65,23.40937344]
[1744507888377,23.26721187,133.7,133.65,23.40937344]
[1744507889099,23.26721187,133.7,133.64,23.26721187]
[1744507889397,22.76721187,133.66,133.61,18.79181043]
[1744507889570,23.26721187,133.67,133.61,18.79181043]
[1744507889770,23.26721187,133.67,133.62,18.64964886]
[1744507890194,23.26721187,133.68,133.62,23.26721187]
[1744507890405,23.26721187,133.68,133.61,7.62636157]
[1744507890595,23.26721187,133.67,133.61,41.91686073]
[1744507890886,23.26721187,133.66,133.6,33.69016157]
[1744507891093,26.1779,133.7,133.6,33.69016157]
[1744507891094,7.4794,133.7,133.62,23.26721187]
[1744507891274,23.26721187,133.67,133.6,33.548]
[1744507891476,23.26721187,133.67,133.61,23.26721187]
[1744507891789,23.26721187,133.67,133.6,30.81521187]
[1744507892094,23.26721187,133.67,133.61,23.26721187]
[1744507892298,23.26721187,133.62,133.6,0.063]
[1744507892479,23.26721187,133.61,133.6,0.063]
[1744507892799,23.26721187,133.62,133.6,0.063]
[1744507893176,23.26721187,133.61,133.6,0.063]
[1744507894290,7.4844,133.61,133.6,0.063]
[1744507894490,30.75161187,133.61,133.6,0.063]
[1744507894905,30.89377344,133.61,133.6,0.0001]
[1744507895480,26.0,133.57,133.49,0.063]
[1744507895684,23.26721187,133.51,133.49,0.063]
[1744507895883,23.26721187,133.5,133.49,0.063]
[1744507896400,30.75781187,133.5,133.49,0.063]
[1744507896789,7.4906,133.5,133.49,0.063]
[1744507896996,30.75781187,133.5,133.49,0.063]
[1744507897185,54.16718531,133.5,133.49,0.063]
[1744507897404,54.16718531,133.5,133.39,38.74381187]
[1744507897405,73.03584688,133.5,133.39,38.74381187]
[1744507897598,73.03584688,133.5,133.4,23.26721187]
[1744507897599,23.26721187,133.45,133.4,23.26721187]
[1744507898104,23.26721187,133.44,133.39,38.74381187]
[1744507898505,23.26721187,133.4,133.35,8.043]
[1744507898801,23.26721187,133.39,133.35,0.063]
[1744507899007,23.26721187,133.4,133.35,30.82911187]
[1744507899178,23.26721187,133.41,133.35,30.82911187]
[1744507899381,49.26721187,133.44,133.36,41.91686073]
[1744507899581,23.26721187,133.42,133.36,41.91686073]
[1744507899995,23.26721187,133.42,133.37,23.26721187]
[1744507900302,30.76231187,133.42,133.36,41.91686073]
[1744507900485,23.26721187,133.41,133.36,41.91686073]
[1744507900987,23.26721187,133.38,133.35,0.063]
[1744507901186,23.26721187,133.41,133.36,23.26721187]
[1744507901391,23.26721187,133.41,133.35,30.82901187]
[1744507901599,23.26721187,133.4,133.35,30.82901187]
[1744507902216,23.26721187,133.4,133.35,23.33021187]
[1744507902424,23.26721187,133.4,133.35,0.063]
[1744507902700,23.26721187,133.38,133.35,0.063]
[1744507902907,23.26721187,133.37,133.35,0.063]
[1744507903086,0.28432314,133.42,133.35,0.063]
[1744507903087,23.26721187,133.39,133.35,0.063]
[1744507903279,23.26721187,133.4,133.35,23.33021187]
[1744507903484,23.26721187,133.38,133.35,0.063]
[1744507904280,23.26721187,133.37,133.35,0.063]
[1744507904481,23.26721187,133.36,133.35,0.063]
[1744507904884,23.55153501,133.36,133.35,0.063]
[1744507905079,50.32334544,133.36,133.35,0.063]
[1744507905305,26.0,133.33,133.27,0.063]
[1744507905612,23.26721187,133.32,133.27,0.063]
[1744507906101,23.26721187,133.28,133.27,0.063]
[1744507906307,30.77021187,133.28,133.27,0.063]
[1744507906506,31.05453501,133.28,133.27,0.063]
[1744507906889,73.11355731,133.28,133.27,0.063]
[1744507907093,23.26721187,133.22,133.21,0.063]
[1744507907301,46.96090845,133.22,133.21,0.063]
[1744507907693,23.69369658,133.22,133.21,0.063]
[1744507908018,65.61055731,133.22,133.21,0.063]
[1744507908188,42.34334544,133.22,133.21,0.0001]
[1744507908392,31.19999658,133.22,133.21,0.0001]
[1744507908919,73.11685731,133.22,133.21,0.0001]
[1744507909502,49.84964544,133.22,133.21,0.0001]
[1744507909934,31.19999658,133.22,133.21,0.0001]
[1744507911915,73.11685731,133.22,133.21,0.0001]
[1744507912117,26.2722,133.22,133.11,0.063]
[1744507912290,23.26721187,133.18,133.12,23.26721187]
[1744507912490,26.0,133.19,133.14,23.26721187]
[1744507912897,23.26721187,133.18,133.12,23.26721187]
[1744507913502,26.15594886,133.22,133.14,23.26721187]
[1744507913503,7.5063,133.22,133.14,23.26721187]
[1744507913706,7.5063,133.22,133.15,23.26721187]
[1744507913907,18.79181043,133.24,133.15,23.26721187]
[1744507913908,30.77421187,133.21,133.15,23.26721187]
[1744507914117,7.507,133.21,133.15,23.26721187]
[1744507914326,6.517,133.27,133.18,23.26721187]
[1744507914624,30.77131187,133.26,133.2,23.26721187]
[1744507914832,23.26721187,133.24,133.17,0.28432314]
[1744507915130,23.26721187,133.19,133.14,18.64964886]
[1744507915294,49.26721187,133.22,133.16,23.26721187]
[1744507915501,23.26721187,133.21,133.15,0.14216157]
[1744507915725,23.26721187,133.21,133.16,23.26721187]
[1744507916110,33.5066,133.22,133.15,30.91947344]
[1744507916424,23.26721187,133.21,133.15,30.91947344]
[1744507916633,23.26721187,133.21,133.16,23.26721187]
[1744507916800,42.16967344,133.26,133.17,42.0590223]
[1744507916801,7.5057,133.24,133.17,42.0590223]
[1744507917124,7.503,133.28,133.22,23.26721187]
[1744507917326,23.26721187,133.26,133.19,18.79181043]
[1744507917530,23.26721187,133.28,133.21,18.79181043]
[1744507917715,23.26721187,133.28,133.23,23.26721187]
[1744507917900,23.26721187,133.28,133.23,30.77261187]
[1744507918337,23.26721187,133.25,133.18,14.2867]
[1744507918495,23.26721187,133.26,133.21,23.26721187]
[1744507918701,23.26721187,133.24,133.19,42.0590223]
[1744507918997,23.26721187,133.23,133.18,8.14]
[1744507919202,23.26721187,133.23,133.18,30.90721187]
[1744507919427,23.26721187,133.24,133.18,30.90721187]
[1744507920222,30.77251187,133.24,133.18,38.41561187]
[1744507920425,23.26721187,133.19,133.13,6.1467]
[1744507920626,23.26721187,133.19,133.1,0.063]
[1744507920627,23.26721187,133.14,133.1,0.063]
[1744507920916,23.26721187,133.15,133.1,0.063]
[1744507921117,23.26721187,133.12,133.1,0.063]
[1744507921900,26.0,133.15,133.1,0.063]
[1744507922219,23.26721187,133.14,133.1,0.063]
[1744507922521,23.26721187,133.12,133.1,0.063]
[1744507922698,23.55153501,133.12,133.1,0.063]
[1744507923119,0.42648471,133.11,133.1,0.063]
[1744507923424,49.55153501,133.11,133.1,0.063]
[1744507923726,18.79181043,133.1,133.09,0.063]
[1744507923916,26.28432314,133.08,133.07,0.063]
[1744507924121,0.28432314,133.04,133.03,0.063]
[1744507924308,73.12705731,133.04,133.03,0.063]
[1744507924510,31.06803501,133.04,133.03,0.063]
[1744507924707,23.26721187,133.04,133.03,0.063]
[1744507925128,26.0,133.0,132.98,0.063]
[1744507925346,49.69369658,133.0,132.98,0.063]
[1744507925519,68.34334544,133.0,132.98,0.063]
[1744507925840,91.61055731,133.0,132.99,0.0001]
[1744507926010,68.34334544,133.0,132.99,0.0001]
[1744507926204,75.86204544,133.0,132.99,0.0001]
[1744507926413,19.07613357,132.99,132.98,0.0001]
[1744507926603,65.61055731,132.99,132.95,2.6622877]
[1744507926823,91.61055731,132.96,132.95,2.6622877]
[1744507927020,99.75055731,132.96,132.95,2.6622877]
[1744507927233,99.75055731,132.96,132.92,0.063]
[1744507927234,44.79181043,132.93,132.92,0.063]
[1744507927532,68.34334544,132.93,132.92,0.063]
[1744507927728,91.61055731,132.93,132.92,0.0001]
[1744507928027,0.28432314,132.88,132.87,0.063]
[1744507928207,31.07703501,132.88,132.87,0.063]
[1744507928523,26.0,132.89,132.87,0.063]
[1744507928711,23.26721187,132.88,132.87,0.063]
[1744507929028,0.28432314,132.94,132.87,0.063]
[1744507929327,15.6616,132.95,132.87,0.063]
[1744507929529,23.26721187,132.92,132.87,0.063]
[1744507929718,23.26721187,132.93,132.88,23.26721187]
[1744507930109,23.26721187,132.94,132.88,23.26721187]
[1744507930309,7.5199,132.98,132.9,23.26721187]
[1744507930520,23.26721187,132.93,132.88,7.5251]
[1744507930829,23.26721187,132.94,132.88,30.79231187]
[1744507931222,23.26721187,132.94,132.89,23.26721187]
[1744507931614,7.5199,132.98,132.9,23.26721187]
[1744507931932,23.26721187,132.96,132.91,23.26721187]
[1744507932121,23.26721187,132.96,132.87,0.063]
[1744507932122,0.14216157,132.91,132.87,0.063]
[1744507932454,31.07703501,132.88,132.87,0.063]
[1744507932636,49.86884544,132.88,132.87,0.063]
[1744507932926,31.07703501,132.88,132.87,0.063]
[1744507933521,49.86884544,132.88,132.87,0.063]
[1744507934122,31.07703501,132.88,132.87,0.063]
[1744507934337,23.26721187,132.88,132.87,0.063]
[1744507934845,23.55153501,132.88,132.87,0.063]
[1744507935049,23.26721187,132.88,132.87,0.063]
[1744507936143,23.26721187,132.91,132.87,0.063]
[1744507936618,23.26721187,132.96,132.87,0.063]
[1744507936619,8.16,132.98,132.89,23.26721187]
[1744507936824,23.26721187,132.95,132.9,23.26721187]
[1744507937016,7.66146157,132.99,132.9,23.26721187]
[1744507937246,7.66146157,132.99,132.93,23.26721187]
[1744507937247,23.26721187,132.98,132.93,23.26721187]
[1744507938050,23.26721187,133.08,132.96,23.26721187]
[1744507938217,23.26721187,133.03,132.98,23.26721187]
[1744507938538,23.26721187,133.02,132.96,7.521]
[1744507938836,26.0,133.04,132.98,23.26721187]
[1744507939021,23.26721187,133.02,132.97,23.26721187]
[1744507939227,89.46,133.11,133.01,23.26721187]
[1744507939549,23.26721187,133.04,132.98,18.79181043]
[1744507939726,23.26721187,133.04,132.99,23.26721187]
[1744507939920,23.26721187,133.02,132.97,23.26721187]
[1744507940121,23.26721187,132.99,132.94,26.31391043]
[1744507940341,23.26721187,132.99,132.94,49.5811223]
[1744507940522,23.26721187,133.0,132.95,23.26721187]
[1744507940724,0.28432314,133.05,132.97,23.26721187]
[1744507940929,18.92926157,133.07,132.99,23.26721187]
[1744507940930,23.26721187,133.04,132.99,23.26721187]
[1744507941120,7.5137,133.09,133.01,23.26721187]
[1744507941329,23.26721187,133.05,133.0,23.26721187]
[1744507941536,23.26721187,133.08,132.99,23.26721187]
[1744507941749,23.26721187,133.04,132.99,23.26721187]
[1744507942217,23.26721187,133.05,132.98,0.14216157]
[1744507942416,23.26721187,133.04,132.99,23.26721187]
[1744507942622,23.26721187,133.0,132.96,7.5208]
[1744507942948,23.26721187,132.97,132.93,7.5227]
[1744507943153,23.26721187,132.96,132.9,30.79161187]
[1744507943318,23.26721187,132.95,132.9,30.79161187]
[1744507943632,23.26721187,132.95,132.9,23.40937344]
[1744507943939,23.26721187,132.96,132.91,23.26721187]
[1744507944135,23.26721187,132.96,132.9,23.40937344]
[1744507944636,23.26721187,132.96,132.91,7.5238]
[1744507944850,23.26721187,132.95,132.89,28.73644886]
[1744507945151,23.26721187,132.96,132.91,23.26721187]
[1744507945448,23.26721187,132.97,132.92,23.26721187]
[1744507945625,23.26721187,132.97,132.91,23.26721187]
[1744507945819,23.26721187,132.97,132.92,23.26721187]
[1744507946016,33.5195,132.99,132.89,55.21551043]
[1744507946221,26.0,132.99,132.94,23.26721187]
[1744507946548,18.7935,133.03,132.98,23.26721187]
[1744507946549,23.26721187,133.03,132.98,23.26721187]
[1744507946725,30.78431187,133.03,132.98,23.26721187]
[1744507947121,23.26721187,133.02,132.97,23.26721187]
[1744507947424,7.5161,133.05,132.99,23.26721187]
[1744507947742,23.26721187,133.04,132.99,23.26721187]
[1744507947926,23.26721187,133.02,132.97,23.26721187]
[1744507948127,23.26721187,133.01,132.96,23.26721187]
[1744507948326,23.40937344,133.03,132.97,23.26721187]
[1744507948539,23.26721187,133.02,132.97,23.26721187]
[1744507949749,23.26721187,133.02,132.97,30.78761187]
[1744507950246,23.26721187,133.01,132.96,30.78811187]
[1744507950640,23.26721187,133.02,132.96,30.78811187]
[1744507950957,23.26721187,133.01,132.94,23.26721187]
[1744507951124,7.80222314,133.02,132.93,23.26721187]
[1744507951125,23.26721187,132.98,132.93,23.26721187]
[1744507951328,23.26721187,133.0,132.95,23.26721187]
[1744507951538,23.26721187,133.01,132.95,23.26721187]
[1744507951722,23.26721187,133.01,132.92,26.31511043]
[1744507952055,64.8225,133.07,132.95,23.26721187]
[1744507952264,64.8225,133.07,133.02,23.26721187]
[1744507952265,23.26721187,133.07,133.02,23.26721187]
[1744507952553,7.5131,133.1,133.05,23.26721187]
[1744507952554,30.78031187,133.1,133.05,23.26721187]
[1744507952752,23.55153501,133.09,133.0,18.79181043]
[1744507952926,0.063,133.04,133.0,23.26721187]
[1744507953249,23.26721187,133.01,132.96,30.78811187]
[1744507953550,23.26721187,133.01,132.96,7.5209]
[1744507953850,23.26721187,133.01,132.96,30.78811187]
[1744507954036,23.26721187,133.01,132.95,30.78861187]
[1744507954234,23.26721187,133.01,132.96,23.26721187]
[1744507954748,23.26721187,133.0,132.95,30.78861187]
[1744507954978,23.26721187,132.97,132.92,18.79181043]
[1744507955247,0.28432314,133.0,132.91,26.3335]
[1744507955428,23.26721187,132.99,132.94,23.26721187]
[1744507955629,23.26721187,133.0,132.95,23.26721187]
[1744507956459,30.78611187,133.0,132.95,23.26721187]
[1744507956749,23.26721187,133.01,132.95,30.78861187]
[1744507956952,0.063,133.04,133.0,23.26721187]
[1744507957160,0.063,133.04,133.02,23.26721187]
[1744507957538,0.063,133.04,132.98,8.46]
[1744507957539,23.26721187,133.03,132.98,8.46]
[1744507957859,23.26721187,133.0,132.92,18.807]
[1744507958168,23.26721187,132.96,132.91,42.0590223]
[1744507958461,23.26721187,132.96,132.91,49.5828223]
[1744507959077,23.55153501,133.02,132.93,18.79181043]
[1744507959245,23.26721187,132.99,132.93,42.0590223]
[1744507959450,23.26721187,132.96,132.91,7.5238]
[1744507959671,0.28432314,132.99,132.91,7.5238]
[1744507959672,23.26721187,132.95,132.91,7.5238]
[1744507959880,7.5182,133.01,132.94,23.40937344]
[1744507960062,33.5182,133.01,132.94,23.40937344]
[1744507960374,23.26721187,132.98,132.92,18.64964886]
[1744507960581,23.26721187,132.98,132.93,30.78991187]
[1744507960874,23.33021187,133.04,132.97,42.0590223]
[1744507961084,0.063,133.04,132.99,23.26721187]
[1744507961655,0.063,133.04,132.97,18.79181043]
[1744507961883,23.33021187,133.04,132.99,23.26721187]
[1744507962175,23.33021187,133.04,132.99,30.78621187]
[1744507962548,23.26721187,133.01,132.93,18.8057]
[1744507962748,23.26721187,133.01,132.95,41.91686073]
[1744507963482,7.5796,133.04,132.95,18.64964886]
[1744507963651,23.26721187,133.02,132.97,23.26721187]
[1744507963850,23.26721187,133.03,132.98,23.26721187]
[1744507964068,23.26721187,133.02,132.97,41.91686073]
[1744507964271,23.26721187,133.02,132.98,2.77282561]
[1744507964469,0.063,133.04,132.98,10.29252561]
[1744507964659,0.063,133.04,133.01,23.26721187]
[1744507964868,0.063,133.04,133.03,23.26721187]
[1744507965067,0.063,133.04,132.99,20.52854412]
[1744507965276,0.063,133.04,133.0,23.26721187]
[1744507965585,23.26721187,133.03,132.99,1.87889526]
[1744507965873,23.26721187,133.03,133.0,1.87889526]
[1744507966061,23.33021187,133.04,133.0,1.87889526]
[1744507966269,0.063,133.04,133.0,25.14610713]
[1744507966470,23.26721187,133.01,133.0,1.87889526]
[1744507966787,23.26721187,133.01,132.96,7.5209]
[1744507967170,23.26721187,133.01,132.96,30.78811187]
[1744507967361,23.26721187,133.0,132.95,23.26721187]
[1744507967565,23.26721187,132.99,132.96,1.87888008]
[1744507967759,23.26721187,133.02,132.96,25.14609195]
[1744507967970,23.26721187,133.02,132.97,23.26721187]
[1744507968265,23.26721187,133.02,132.97,30.78741187]
[1744507968465,23.26721187,133.01,132.96,25.14609195]
[1744507968666,23.26721187,132.99,132.97,1.87888008]
[1744507968865,23.26721187,132.98,132.97,1.87888008]
[1744507969476,23.55153501,132.98,132.97,1.87888008]
[1744507970062,0.28432314,132.97,132.9,23.26721187]
[1744507970261,23.26721187,132.94,132.91,2.78402619]
[1744507970880,30.78991187,132.93,132.91,2.78402619]
[1744507971085,23.26721187,132.92,132.91,2.78402619]
[1744507971294,23.26721187,132.92,132.87,0.063]
[1744507971475,23.26721187,132.91,132.87,0.063]
[1744507971785,26.0,132.9,132.87,0.063]
[1744507971999,23.26721187,132.88,132.87,0.063]
[1744507972868,31.07703501,132.88,132.87,0.063]
[1744507973384,49.86884544,132.88,132.87,0.063]
[1744507973758,49.86884544,132.88,132.87,0.0001]
[1744507974163,23.55153501,132.82,132.81,0.03]
[1744507974385,26.0,132.79,132.78,0.03]
[1744507974559,0.28432314,132.77,132.73,0.03]
[1744507974761,26.28432314,132.74,132.73,0.03]
[1744507974970,23.55153501,132.74,132.73,0.03]
[1744507975282,42.34334544,132.74,132.73,0.03]
[1744507975584,23.26721187,132.74,132.73,0.03]
[1744507975885,0.28432314,132.77,132.73,0.03]
[1744507976060,23.26721187,132.74,132.73,0.03]
[1744507976256,23.55153501,132.74,132.73,0.03]
[1744507976592,23.26721187,132.74,132.73,0.03]
[1744507977076,23.55153501,132.74,132.73,0.03]
[1744507978093,42.34334544,132.74,132.73,0.03]
[1744507979482,23.55153501,132.74,132.73,0.03]
[1744507979881,23.26721187,132.74,132.73,0.03]
[1744507980069,23.26721187,132.76,132.73,0.03]
[1744507981175,23.26721187,132.74,132.73,0.03]
[1744507981567,23.26721187,132.75,132.73,0.03]
[1744507981775,18.79181043,132.81,132.73,0.03]
[1744507982079,23.26721187,132.78,132.73,23.29721187]
[1744507982584,23.26721187,132.77,132.73,0.03]
[1744507983695,26.0,132.82,132.74,23.26721187]
[1744507983896,23.26721187,132.84,132.76,23.26721187]
[1744507984075,23.26721187,132.82,132.77,23.26721187]
[1744507984282,0.28432314,132.84,132.77,23.26721187]
[1744507984601,23.26721187,132.78,132.74,8.5]
[1744507984779,23.26721187,132.77,132.74,8.5]
[1744507984979,23.26721187,132.75,132.73,0.03]
[1744507985187,23.26721187,132.76,132.73,0.03]
[1744507985692,23.26721187,132.75,132.73,0.03]
[1744507986188,23.26721187,132.76,132.73,0.03]
[1744507986979,81.0,132.83,132.73,0.03]
[1744507987179,23.26721187,132.75,132.73,0.03]
[1744507987379,23.26721187,132.78,132.73,0.03]
[1744507987380,0.28432314,132.77,132.73,0.03]
[1744507987676,23.55153501,132.74,132.73,0.03]
[1744507987876,42.34334544,132.74,132.73,0.03]
[1744507988092,0.14216157,132.79,132.73,0.03]
[1744507988275,23.26721187,132.76,132.73,0.03]
[1744507988483,23.26721187,132.75,132.73,0.03]
[1744507988878,23.26721187,132.76,132.73,0.03]
[1744507989278,23.26721187,132.75,132.73,0.03]
[1744507989482,23.40937344,132.78,132.73,0.03]
[1744507989483,7.67346157,132.78,132.73,0.03]
[1744507989685,34.5,132.8,132.73,0.03]
[1744507989686,16.0302,132.8,132.73,23.29721187]
[1744507989979,23.26721187,132.79,132.74,23.26721187]
[1744507990200,23.26721187,132.77,132.73,0.03]
[1744507990576,23.26721187,132.76,132.73,0.03]
[1744507990777,26.28432314,132.79,132.73,0.03]
[1744507991013,7.5289,132.82,132.74,23.26721187]
[1744507991182,7.5908,132.84,132.78,22.76721187]
[1744507991386,7.5908,132.84,132.76,30.79951187]
[1744507991387,23.26721187,132.81,132.76,30.79951187]
[1744507991701,23.26721187,132.81,132.76,7.5323]
[1744507991900,7.5908,132.84,132.77,23.26721187]
[1744507992083,23.26721187,132.82,132.77,23.26721187]
[1744507992279,23.26721187,132.81,132.76,30.79951187]
[1744507992477,26.063,132.84,132.78,23.26721187]
[1744507992699,23.33021187,132.84,132.78,23.26721187]
[1744507992906,23.26721187,132.83,132.78,23.26721187]
[1744507993079,23.33021187,132.84,132.79,30.79781187]
[1744507993279,0.063,132.84,132.82,23.26721187]
[1744507993505,0.063,132.84,132.79,7.5306]
[1744507993506,0.063,132.84,132.81,23.26721187]
[1744507993686,0.063,132.84,132.79,26.32241043]
[1744507993687,0.063,132.84,132.8,23.26721187]
[1744507994399,0.063,132.84,132.81,23.26721187]
[1744507994792,23.33021187,132.84,132.77,7.5314]
[1744507995104,23.26721187,132.83,132.78,30.79811187]
[1744507995275,0.063,132.84,132.79,23.26721187]
[1744507995276,23.33021187,132.84,132.79,23.26721187]
[1744507995479,0.063,132.84,132.81,23.26721187]
[1744507995683,0.063,132.84,132.82,23.26721187]
[1744507996510,0.063,132.84,132.78,39.29811187]
[1744507996809,23.26721187,132.83,132.77,7.5317]
[1744507996989,23.26721187,132.82,132.77,23.26721187]
[1744507997183,23.26721187,132.83,132.78,23.26721187]
[1744507997383,23.33021187,132.84,132.79,23.26721187]
[1744507997902,23.26721187,132.81,132.76,32.59651207]
[1744507998092,23.26721187,132.81,132.77,23.26721187]
[1744507998604,31.14263501,132.84,132.76,1.7971002]
[1744507998804,23.26721187,132.79,132.76,1.7971002]
[1744507999004,23.26721187,132.8,132.76,1.7971002]
[1744507999180,0.063,132.84,132.76,25.06431207]
[1744507999387,23.26721187,132.77,132.76,1.7971002]
[1744507999727,42.34334544,132.77,132.76,2e-07]
[1744508000042,45.07613357,132.74,132.73,0.0001]
[1744508000304,26.14216157,132.69,132.67,0.03]
[1744508000514,23.26721187,132.68,132.67,0.03]
[1744508000684,42.34334544,132.68,132.67,0.03]
[1744508001188,42.34334544,132.68,132.64,0.03]
[1744508001189,33.5386,132.65,132.64,0.03]
[1744508001403,57.09013501,132.65,132.64,0.03]
[1744508006311,23.26721187,132.65,132.64,0.03]
[1744508006514,37.6823,132.69,132.64,0.03]
[1744508006515,7.5368,132.69,132.64,0.03]
[1744508006690,23.26721187,132.68,132.64,0.03]
[1744508006895,23.26721187,132.67,132.64,0.03]
[1744508007217,23.26721187,132.68,132.64,0.03]
[1744508007540,7.5353,132.71,132.64,0.03]
[1744508007694,23.26721187,132.7,132.65,23.26721187]
[1744508007888,23.26721187,132.68,132.64,0.03]
[1744508008098,23.26721187,132.66,132.64,0.03]
[1744508008413,23.26721187,132.72,132.64,23.29721187]
[1744508008615,23.26721187,132.69,132.64,23.29721187]
[1744508008798,7.534,132.73,132.67,23.26721187]
[1744508008992,23.26721187,132.71,132.66,23.26721187]
[1744508009417,23.26721187,132.7,132.65,23.26721187]
[1744508009606,23.26721187,132.68,132.64,0.03]
[1744508009918,23.26721187,132.69,132.64,23.29721187]
[1744508010219,23.26721187,132.7,132.65,23.26721187]
[1744508010519,30.80331187,132.7,132.65,23.26721187]
[1744508011018,7.5335,132.74,132.68,23.26721187]
[1744508011216,23.26721187,132.72,132.67,23.26721187]
[1744508011426,23.26721187,132.71,132.64,7.569]
[1744508011610,23.26721187,132.72,132.66,23.26721187]
[1744508011800,23.26721187,132.72,132.67,23.26721187]
[1744508012007,23.26721187,132.73,132.68,23.26721187]
[1744508012195,23.40937344,132.74,132.69,23.26721187]
[1744508012399,23.26721187,132.78,132.73,30.80121187]
[1744508012617,30.79801187,132.79,132.74,23.26721187]
[1744508012925,23.26721187,132.78,132.73,30.80121187]
[1744508013303,23.26721187,132.79,132.74,23.26721187]
[1744508013512,23.26721187,132.78,132.73,30.80121187]
[1744508013703,23.26721187,132.74,132.69,8.5]
[1744508013910,23.26721187,132.73,132.68,23.26721187]
[1744508014118,23.26721187,132.74,132.69,23.26721187]
[1744508014897,23.26721187,132.78,132.71,23.26721187]
[1744508014898,7.5317,132.78,132.71,23.26721187]
[1744508015210,23.26721187,132.74,132.69,30.80311187]
[1744508015803,23.26721187,132.75,132.71,23.26721187]
[1744508016805,23.26721187,132.75,132.7,23.26721187]
[1744508017006,23.26721187,132.75,132.7,30.80251187]
[1744508017437,23.26721187,132.74,132.69,23.26721187]
[1744508017606,23.26721187,132.74,132.68,7.5364]
[1744508017607,23.26721187,132.75,132.7,23.26721187]
[1744508017802,0.28432314,132.77,132.7,23.26721187]
[1744508018000,7.81442314,132.8,132.74,23.26721187]
[1744508018207,30.79731187,132.8,132.74,23.26721187]
[1744508018407,23.26721187,132.75,132.69,18.79181043]
[1744508018732,23.26721187,132.73,132.7,2.78531977]
[1744508018956,23.26721187,132.74,132.7,2.78531977]
[1744508019251,23.55153501,132.71,132.7,2.78531977]
[1744508019940,42.34334544,132.71,132.7,2.78531977]
[1744508020151,42.34334544,132.71,132.64,0.03]
[1744508020357,23.26721187,132.67,132.64,0.03]
[1744508020643,23.26721187,132.68,132.64,0.03]
[1744508021444,30.80431187,132.68,132.64,0.03]
[1744508021640,7.5364,132.69,132.64,0.03]
[1744508021837,23.26721187,132.68,132.64,0.03]
[1744508023452,0.28432314,132.7,132.64,23.29721187]
[1744508023618,23.26721187,132.67,132.64,0.03]
[1744508024243,26.65942314,132.7,132.64,0.03]
[1744508024244,7.82002314,132.7,132.64,0.03]
[1744508024420,23.26721187,132.68,132.64,0.03]
[1744508024830,7.82002314,132.7,132.64,0.03]
[1744508025035,7.82002314,132.7,132.64,23.29721187]
[1744508025229,23.26721187,132.67,132.64,0.03]
[1744508025434,30.80481187,132.67,132.64,0.03]
[1744508025844,7.5376,132.67,132.64,0.03]
[1744508026032,30.80431187,132.68,132.64,0.03]
[1744508026421,8.48,132.72,132.66,23.26721187]
[1744508026724,23.26721187,132.71,132.64,0.03]
[1744508026928,23.26721187,132.7,132.64,0.03]
[1744508027133,23.26721187,132.69,132.64,0.03]
[1744508027333,23.26721187,132.66,132.64,0.03]
[1744508027638,7.538,132.67,132.64,0.03]
[1744508027639,23.26721187,132.67,132.64,0.03]
[1744508027844,0.28432314,132.7,132.64,0.03]
[1744508028032,23.26721187,132.72,132.67,23.26721187]
[1744508028234,23.26721187,132.72,132.68,23.26721187]
[1744508028432,89.4,132.75,132.64,19.10613357]
[1744508028433,23.26721187,132.71,132.64,18.82181043]
[1744508028642,23.26721187,132.71,132.66,23.26721187]
[1744508028823,23.26721187,132.72,132.67,23.26721187]
[1744508029023,23.26721187,132.73,132.68,23.26721187]
[1744508029219,23.26721187,132.71,132.64,0.03]
[1744508029539,0.28432314,132.74,132.68,23.26721187]
[1744508029722,23.26721187,132.73,132.68,23.26721187]